[Event "Titled Tuesday Blitz February 14 Late 2023"]
[White "Forgacs, Attila Jr."]
[Black "Koellner, Ruben Gideon"]
[WhiteFideId "773654"]
[BlackFideId "12993093"]
[WhiteElo "2264"]
[BlackElo "2426"]
[Result "0-1"]
[Round "10"]
[TimeControl "180+2"]
[Date "2023.02.14"]
[WhiteClock "0:00:02"]
[BlackClock "0:00:38"]

1. e4 {[%clk 0:03:00]}  d6 {[%clk 0:02:59]} 2. d4 {[%clk 0:03:00]}  Nf6 {[%clk 0:02:59]} 3. Nc3 {[%clk 0:03:00]}  e5 {[%clk 0:03:00]} 4. Nf3 {[%clk 0:03:00]}  Nbd7 {[%clk 0:02:59]} 5. Rg1 {[%clk 0:02:59]}  c6 {[%clk 0:02:58]} 6. g4 {[%clk 0:02:59]}  h6 {[%clk 0:02:59]} 7. Be3 {[%clk 0:02:55]}  b5 {[%clk 0:02:58]} 8. a3 {[%clk 0:02:53]}  Qa5 {[%clk 0:02:58]} 9. Nd2 {[%clk 0:02:48]}  Bb7 {[%clk 0:02:58]} 10. Nb3 {[%clk 0:02:47]}  Qc7 {[%clk 0:02:59]} 11. Qd2 {[%clk 0:02:46]}  a6 {[%clk 0:02:59]} 12. h4 {[%clk 0:02:43]}  c5 {[%clk 0:02:54]} 13. dxc5 {[%clk 0:02:39]}  dxc5 {[%clk 0:02:54]} 14. g5 {[%clk 0:02:38]}  hxg5 {[%clk 0:02:53]} 15. hxg5 {[%clk 0:02:39]}  Nxe4 {[%clk 0:02:54]} 16. Nxe4 {[%clk 0:02:38]}  Bxe4 {[%clk 0:02:55]} 17. O-O-O {[%clk 0:02:35]}  O-O-O {[%clk 0:02:52]} 18. f4 {[%clk 0:01:46]}  c4 {[%clk 0:02:46]} 19. Na5 {[%clk 0:01:34]}  Bc5 {[%clk 0:02:44]} 20. b4 {[%clk 0:00:45]}  cxb3 {[%clk 0:02:23]} 21. Bxc5 {[%clk 0:00:29]}  Nxc5 {[%clk 0:02:03]} 22. Qb4 {[%clk 0:00:25]}  Rxd1+ {[%clk 0:02:01]} 23. Kxd1 {[%clk 0:00:25]}  bxc2+ {[%clk 0:01:42]} 24. Kc1 {[%clk 0:00:23]}  Qxa5 {[%clk 0:01:40]} 25. Qxc5+ {[%clk 0:00:19]}  Qc7 {[%clk 0:01:40]} 26. Qe3 {[%clk 0:00:06]}  Bf5 {[%clk 0:01:06]} 27. fxe5 {[%clk 0:00:06]}  Kb8 {[%clk 0:00:54]} 28. Bd3 {[%clk 0:00:05]}  Bxd3 {[%clk 0:00:44]} 29. Qxd3 {[%clk 0:00:06]}  Rc8 {[%clk 0:00:44]} 30. Rf1 {[%clk 0:00:03]}  Qxe5 {[%clk 0:00:40]} 31. Qb3 {[%clk 0:00:02]}  Qa1+ {[%clk 0:00:38]} 32. Kd2 {[%clk 0:00:02]}  c1=Q+ {[%clk 0:00:35]} 33. Rxc1 {[%clk 0:00:02]}  Qxc1+ {[%clk 0:00:36]} 34. Kd3 {[%clk 0:00:01]}  Qc4+ {[%clk 0:00:36]} 35. Qxc4 {[%clk 0:00:01]}  Rxc4 {[%clk 0:00:37]} 36. g6 {[%clk 0:00:02]}  fxg6 {[%clk 0:00:38]} 37. a4 {[%clk 0:00:02]}  Rxa4 {[%clk 0:00:38]} 0-1


[Site "https://www.chess.com"]

[Event "Titled Tuesday Blitz February 14 Late 2023"]
[White "Kielinkei"]
[Black "Chor, Kevin"]
[BlackFideId "2090740"]
[WhiteElo "2399"]
[BlackElo "1944"]
[Result "0-1"]
[Round "10"]
[TimeControl "180+2"]
[Date "2023.02.14"]
[WhiteClock "0:00:09"]
[BlackClock "0:01:07"]

1. d4 {[%clk 0:03:00]}  Nf6 {[%clk 0:02:59]} 2. c4 {[%clk 0:03:00]}  g6 {[%clk 0:02:58]} 3. Nc3 {[%clk 0:02:59]}  Bg7 {[%clk 0:02:58]} 4. e4 {[%clk 0:03:00]}  d6 {[%clk 0:02:58]} 5. Be2 {[%clk 0:03:00]}  O-O {[%clk 0:02:58]} 6. Be3 {[%clk 0:03:01]}  Na6 {[%clk 0:02:55]} 7. Qd2 {[%clk 0:02:59]}  e5 {[%clk 0:02:54]} 8. d5 {[%clk 0:02:58]}  Nc5 {[%clk 0:02:53]} 9. f3 {[%clk 0:02:59]}  a5 {[%clk 0:02:53]} 10. g4 {[%clk 0:02:57]}  c6 {[%clk 0:02:51]} 11. O-O-O {[%clk 0:02:42]}  cxd5 {[%clk 0:02:45]} 12. cxd5 {[%clk 0:02:37]}  Bd7 {[%clk 0:02:40]} 13. Kb1 {[%clk 0:02:28]}  Qe8 {[%clk 0:02:26]} 14. h4 {[%clk 0:02:17]}  b5 {[%clk 0:02:24]} 15. Bd3 {[%clk 0:02:08]}  b4 {[%clk 0:02:20]} 16. Nce2 {[%clk 0:02:08]}  Nxd3 {[%clk 0:02:06]} 17. Qxd3 {[%clk 0:02:08]}  Bb5 {[%clk 0:02:06]} 18. Qd2 {[%clk 0:02:08]}  Rc8 {[%clk 0:01:42]} 19. h5 {[%clk 0:02:06]}  Qd7 {[%clk 0:01:38]} 20. hxg6 {[%clk 0:01:56]}  fxg6 {[%clk 0:01:39]} 21. Nh3 {[%clk 0:01:51]}  Nxe4 {[%clk 0:01:30]} 22. fxe4 {[%clk 0:01:33]}  Qxg4 {[%clk 0:01:30]} 23. Ng5 {[%clk 0:00:39]}  Qxe2 {[%clk 0:01:20]} 24. Qxe2 {[%clk 0:00:31]}  Bxe2 {[%clk 0:01:19]} 25. Rd2 {[%clk 0:00:27]}  Bf3 {[%clk 0:01:11]} 26. Rhh2 {[%clk 0:00:09]}  Bxe4+ {[%clk 0:01:07]} 0-1


[Site "https://www.chess.com"]

[Event "Titled Tuesday Blitz February 14 Late 2023"]
[White "Hoffmann, Asa"]
[Black "Womacka, Mathias"]
[WhiteFideId "2001470"]
[BlackFideId "4611390"]
[WhiteElo "2185"]
[BlackElo "2396"]
[Result "0-1"]
[Round "10"]
[TimeControl "180+2"]
[Date "2023.02.14"]
[WhiteClock "0:00:44"]
[BlackClock "0:00:31"]

1. d4 {[%clk 0:03:00]}  Nf6 {[%clk 0:02:58]} 2. Bg5 {[%clk 0:02:59]}  Ne4 {[%clk 0:02:57]} 3. Bf4 {[%clk 0:02:57]}  c5 {[%clk 0:02:58]} 4. f3 {[%clk 0:02:56]}  Qa5+ {[%clk 0:02:57]} 5. c3 {[%clk 0:02:53]}  Nf6 {[%clk 0:02:57]} 6. d5 {[%clk 0:02:52]}  Qb6 {[%clk 0:02:57]} 7. e4 {[%clk 0:02:52]}  Qxb2 {[%clk 0:02:53]} 8. Nd2 {[%clk 0:02:51]}  Qxc3 {[%clk 0:02:53]} 9. Bc7 {[%clk 0:02:50]}  d6 {[%clk 0:02:53]} 10. Rb1 {[%clk 0:02:47]}  Qe3+ {[%clk 0:02:38]} 11. Ne2 {[%clk 0:02:46]}  g6 {[%clk 0:02:36]} 12. Nc4 {[%clk 0:02:41]}  Qh6 {[%clk 0:02:31]} 13. Ba5 {[%clk 0:02:41]}  g5 {[%clk 0:02:18]} 14. Bd2 {[%clk 0:02:40]}  Qg6 {[%clk 0:02:18]} 15. Qa4+ {[%clk 0:02:34]}  Nbd7 {[%clk 0:01:59]} 16. Nb6 {[%clk 0:02:26]}  Rb8 {[%clk 0:01:59]} 17. Qxa7 {[%clk 0:02:23]}  Bg7 {[%clk 0:01:56]} 18. Ng3 {[%clk 0:02:20]}  O-O {[%clk 0:01:47]} 19. Nf5 {[%clk 0:02:19]}  Re8 {[%clk 0:01:46]} 20. Bb5 {[%clk 0:02:18]}  Nxb6 {[%clk 0:01:39]} 21. Bxe8 {[%clk 0:02:10]}  Ra8 {[%clk 0:01:32]} 22. Qxb6 {[%clk 0:02:00]}  Bxf5 {[%clk 0:01:29]} 23. exf5 {[%clk 0:01:56]}  Qxf5 {[%clk 0:01:29]} 24. Bxf7+ {[%clk 0:01:30]}  Kxf7 {[%clk 0:01:29]} 25. O-O {[%clk 0:01:30]}  Rxa2 {[%clk 0:01:25]} 26. Rbd1 {[%clk 0:01:21]}  Qxd5 {[%clk 0:01:20]} 27. Be3 {[%clk 0:01:10]}  Qc4 {[%clk 0:01:16]} 28. Qxb7 {[%clk 0:01:05]}  h6 {[%clk 0:00:52]} 29. Bf2 {[%clk 0:01:03]}  Nh5 {[%clk 0:00:48]} 30. Rfe1 {[%clk 0:01:01]}  Bf6 {[%clk 0:00:44]} 31. Qd5+ {[%clk 0:00:57]}  Qxd5 {[%clk 0:00:43]} 32. Rxd5 {[%clk 0:00:56]}  Nf4 {[%clk 0:00:43]} 33. Rdd1 {[%clk 0:00:54]}  c4 {[%clk 0:00:33]} 34. Rc1 {[%clk 0:00:47]}  Nd3 {[%clk 0:00:33]} 35. Ra1 {[%clk 0:00:44]}  Rxa1 {[%clk 0:00:31]} 0-1


[Site "https://www.chess.com"]

[Event "Titled Tuesday Blitz February 14 Late 2023"]
[White "Gasparyan, David"]
[Black "Prieto Aranguren, Alain"]
[WhiteFideId "13311980"]
[BlackFideId "2268906"]
[WhiteElo "2142"]
[BlackElo "2258"]
[Result "0-1"]
[Round "10"]
[TimeControl "180+2"]
[Date "2023.02.14"]
[WhiteClock "0:00:02"]
[BlackClock "0:00:12"]

1. d4 {[%clk 0:03:00]}  a6 {[%clk 0:02:58]} 2. c4 {[%clk 0:03:00]}  c6 {[%clk 0:02:58]} 3. Nc3 {[%clk 0:02:59]}  d5 {[%clk 0:02:58]} 4. e4 {[%clk 0:02:58]}  dxc4 {[%clk 0:02:58]} 5. Bxc4 {[%clk 0:02:58]}  e5 {[%clk 0:02:58]} 6. dxe5 {[%clk 0:02:56]}  Qxd1+ {[%clk 0:02:55]} 7. Nxd1 {[%clk 0:02:56]}  Nd7 {[%clk 0:02:14]} 8. f4 {[%clk 0:02:40]}  b5 {[%clk 0:02:13]} 9. Bb3 {[%clk 0:02:38]}  f6 {[%clk 0:02:07]} 10. exf6 {[%clk 0:02:28]}  Ngxf6 {[%clk 0:02:06]} 11. e5 {[%clk 0:02:22]}  Nd5 {[%clk 0:02:06]} 12. Nf3 {[%clk 0:02:21]}  N7b6 {[%clk 0:02:01]} 13. O-O {[%clk 0:02:16]}  Bc5+ {[%clk 0:01:58]} 14. Kh1 {[%clk 0:02:16]}  Nc4 {[%clk 0:01:54]} 15. Nf2 {[%clk 0:02:02]}  O-O {[%clk 0:01:50]} 16. Nd3 {[%clk 0:02:01]}  Bb6 {[%clk 0:01:46]} 17. a4 {[%clk 0:01:36]}  Bf5 {[%clk 0:01:41]} 18. Nf2 {[%clk 0:01:24]}  Na5 {[%clk 0:01:40]} 19. Ba2 {[%clk 0:01:20]}  bxa4 {[%clk 0:01:36]} 20. h3 {[%clk 0:01:09]}  Nb3 {[%clk 0:01:32]} 21. Bxb3 {[%clk 0:01:08]}  axb3 {[%clk 0:01:31]} 22. g4 {[%clk 0:01:08]}  Bc8 {[%clk 0:01:23]} 23. f5 {[%clk 0:00:57]}  a5 {[%clk 0:01:23]} 24. Ne4 {[%clk 0:00:56]}  Ba6 {[%clk 0:01:19]} 25. Re1 {[%clk 0:00:52]}  Nb4 {[%clk 0:01:14]} 26. Rd1 {[%clk 0:00:31]}  Be2 {[%clk 0:01:12]} 27. Nfg5 {[%clk 0:00:22]}  Bxd1 {[%clk 0:01:11]} 28. e6 {[%clk 0:00:20]}  h6 {[%clk 0:01:02]} 29. Bd2 {[%clk 0:00:10]}  Be2 {[%clk 0:01:00]} 30. Re1 {[%clk 0:00:09]}  Bd3 {[%clk 0:00:52]} 31. Bxb4 {[%clk 0:00:08]}  axb4 {[%clk 0:00:50]} 32. Nf3 {[%clk 0:00:09]}  Bxe4 {[%clk 0:00:41]} 33. Rxe4 {[%clk 0:00:10]}  Ra1+ {[%clk 0:00:40]} 34. Kg2 {[%clk 0:00:10]}  Ra2 {[%clk 0:00:40]} 35. Re2 {[%clk 0:00:10]}  c5 {[%clk 0:00:39]} 36. Ne5 {[%clk 0:00:08]}  Bc7 {[%clk 0:00:32]} 37. Nd7 {[%clk 0:00:08]}  c4 {[%clk 0:00:23]} 38. Nxf8 {[%clk 0:00:04]}  Kxf8 {[%clk 0:00:21]} 39. Re4 {[%clk 0:00:02]}  Rxb2+ {[%clk 0:00:19]} 40. Kf3 {[%clk 0:00:03]}  Rc2 {[%clk 0:00:19]} 41. h4 {[%clk 0:00:02]}  b2 {[%clk 0:00:19]} 42. g5 {[%clk 0:00:03]}  b1=Q {[%clk 0:00:18]} 43. f6 {[%clk 0:00:03]}  Qf1+ {[%clk 0:00:18]} 44. Kg4 {[%clk 0:00:03]}  Rg2+ {[%clk 0:00:17]} 45. Kh5 {[%clk 0:00:02]}  Qf3+ {[%clk 0:00:17]} 46. Kg6 {[%clk 0:00:03]}  Qxe4+ {[%clk 0:00:17]} 47. Kh5 {[%clk 0:00:03]}  Qxe6 {[%clk 0:00:14]} 48. g6 {[%clk 0:00:02]}  Qf5# {[%clk 0:00:12]} 0-1


[Site "https://www.chess.com"]

[Event "Titled Tuesday Blitz February 14 Late 2023"]
[White "Mikhalsky, Vladimir"]
[Black "Sabar, Ethmane Daouda"]
[WhiteFideId "14144352"]
[BlackFideId "19600097"]
[WhiteElo "2219"]
[BlackElo "2040"]
[Result "1-0"]
[Round "10"]
[TimeControl "180+2"]
[Date "2023.02.14"]
[WhiteClock "0:00:41"]
[BlackClock "0:01:08"]

1. d4 {[%clk 0:03:00]}  d5 {[%clk 0:02:59]} 2. c4 {[%clk 0:02:59]}  e5 {[%clk 0:02:59]} 3. dxe5 {[%clk 0:02:58]}  d4 {[%clk 0:03:00]} 4. Nf3 {[%clk 0:02:56]}  Nc6 {[%clk 0:03:01]} 5. g3 {[%clk 0:02:55]}  Bg4 {[%clk 0:03:00]} 6. Nbd2 {[%clk 0:02:51]}  Qe7 {[%clk 0:02:58]} 7. Bg2 {[%clk 0:02:45]}  O-O-O {[%clk 0:02:58]} 8. h3 {[%clk 0:02:42]}  Bxf3 {[%clk 0:02:49]} 9. Nxf3 {[%clk 0:02:41]}  Nxe5 {[%clk 0:02:49]} 10. O-O {[%clk 0:02:39]}  Nxf3+ {[%clk 0:02:29]} 11. Bxf3 {[%clk 0:02:38]}  Nf6 {[%clk 0:02:29]} 12. Bf4 {[%clk 0:02:09]}  h6 {[%clk 0:02:22]} 13. b4 {[%clk 0:02:04]}  g5 {[%clk 0:02:19]} 14. Bd2 {[%clk 0:02:04]}  Ne4 {[%clk 0:02:11]} 15. Qc2 {[%clk 0:01:46]}  f5 {[%clk 0:02:04]} 16. c5 {[%clk 0:01:44]}  Bg7 {[%clk 0:02:02]} 17. c6 {[%clk 0:01:39]}  b6 {[%clk 0:02:02]} 18. Bxe4 {[%clk 0:01:26]}  Qxe4 {[%clk 0:01:59]} 19. Qa4 {[%clk 0:01:25]}  Kb8 {[%clk 0:01:56]} 20. b5 {[%clk 0:01:17]}  Ka8 {[%clk 0:01:56]} 21. Qb3 {[%clk 0:01:10]}  Qxe2 {[%clk 0:01:39]} 22. Bb4 {[%clk 0:01:04]}  d3 {[%clk 0:01:35]} 23. Rae1 {[%clk 0:00:58]}  Qc2 {[%clk 0:01:28]} 24. Qf7 {[%clk 0:00:57]}  Qb2 {[%clk 0:01:14]} 25. Qxc7 {[%clk 0:00:55]}  Rb8 {[%clk 0:01:14]} 26. Re7 {[%clk 0:00:49]}  Qxa2 {[%clk 0:01:08]} 27. Bd6 {[%clk 0:00:41]} 1-0


[Site "https://www.chess.com"]

[Event "Titled Tuesday Blitz February 14 Late 2023"]
[White "Delorme, Alban"]
[Black "Papayan, Oleg"]
[WhiteFideId "623636"]
[BlackFideId "4193911"]
[WhiteElo "2298"]
[BlackElo "2253"]
[Result "0-1"]
[Round "10"]
[TimeControl "180+2"]
[Date "2023.02.14"]
[WhiteClock "0:01:10"]
[BlackClock "0:01:15"]

1. e4 {[%clk 0:03:00]}  d5 {[%clk 0:03:00]} 2. exd5 {[%clk 0:03:01]}  Qxd5 {[%clk 0:03:01]} 3. Nc3 {[%clk 0:03:01]}  Qd8 {[%clk 0:03:01]} 4. d4 {[%clk 0:03:01]}  c6 {[%clk 0:03:02]} 5. Nf3 {[%clk 0:03:02]}  Bf5 {[%clk 0:03:02]} 6. Bc4 {[%clk 0:03:02]}  e6 {[%clk 0:03:03]} 7. O-O {[%clk 0:03:03]}  Nd7 {[%clk 0:03:03]} 8. Ne5 {[%clk 0:03:02]}  Nxe5 {[%clk 0:03:01]} 9. dxe5 {[%clk 0:03:02]}  Qxd1 {[%clk 0:03:01]} 10. Rxd1 {[%clk 0:03:02]}  Bxc2 {[%clk 0:03:02]} 11. Re1 {[%clk 0:02:59]}  Ne7 {[%clk 0:02:51]} 12. Bg5 {[%clk 0:02:54]}  h6 {[%clk 0:02:47]} 13. Be3 {[%clk 0:02:47]}  Nd5 {[%clk 0:02:46]} 14. Bxd5 {[%clk 0:02:44]}  exd5 {[%clk 0:02:43]} 15. Rac1 {[%clk 0:02:43]}  Bf5 {[%clk 0:02:43]} 16. h3 {[%clk 0:02:32]}  h5 {[%clk 0:02:39]} 17. Na4 {[%clk 0:02:24]}  b6 {[%clk 0:02:22]} 18. Rxc6 {[%clk 0:01:59]}  Bd7 {[%clk 0:02:22]} 19. Nxb6 {[%clk 0:01:50]}  Bxc6 {[%clk 0:01:55]} 20. Nxa8 {[%clk 0:01:48]}  Bxa8 {[%clk 0:01:56]} 21. Bxa7 {[%clk 0:01:48]}  Kd7 {[%clk 0:01:46]} 22. Rc1 {[%clk 0:01:44]}  Rh6 {[%clk 0:01:42]} 23. Be3 {[%clk 0:01:40]}  Rc6 {[%clk 0:01:37]} 24. Rd1 {[%clk 0:01:37]}  Rc2 {[%clk 0:01:35]} 25. Bd4 {[%clk 0:01:36]}  Bc5 {[%clk 0:01:27]} 26. Bxc5 {[%clk 0:01:33]}  Rxc5 {[%clk 0:01:28]} 27. Rd3 {[%clk 0:01:31]}  Rc2 {[%clk 0:01:23]} 28. Ra3 {[%clk 0:01:31]}  Bc6 {[%clk 0:01:22]} 29. Ra7+ {[%clk 0:01:28]}  Ke6 {[%clk 0:01:23]} 30. b4 {[%clk 0:01:20]}  d4 {[%clk 0:01:18]} 31. a4 {[%clk 0:01:16]}  d3 {[%clk 0:01:18]} 32. Kf1 {[%clk 0:01:10]}  Rc1# {[%clk 0:01:15]} 0-1


[Site "https://www.chess.com"]

[Event "Titled Tuesday Blitz February 14 Late 2023"]
[White "Ruiz Aguilar, Pablo Alexander"]
[Black "Rottenwohrer Suarez, Juan"]
[WhiteFideId "4401352"]
[BlackFideId "32068182"]
[WhiteElo "2161"]
[BlackElo "2265"]
[Result "0-1"]
[Round "10"]
[TimeControl "180+2"]
[Date "2023.02.14"]
[WhiteClock "0:00:02"]
[BlackClock "0:00:03"]

1. e4 {[%clk 0:03:00]}  c5 {[%clk 0:02:56]} 2. Nf3 {[%clk 0:03:00]}  g6 {[%clk 0:02:56]} 3. d4 {[%clk 0:03:00]}  cxd4 {[%clk 0:02:57]} 4. Nxd4 {[%clk 0:03:01]}  Nc6 {[%clk 0:02:57]} 5. Nc3 {[%clk 0:03:01]}  Bg7 {[%clk 0:02:57]} 6. Be3 {[%clk 0:03:01]}  Nf6 {[%clk 0:02:57]} 7. Bc4 {[%clk 0:03:02]}  O-O {[%clk 0:02:58]} 8. Bb3 {[%clk 0:03:02]}  Re8 {[%clk 0:02:26]} 9. f4 {[%clk 0:02:51]}  d6 {[%clk 0:02:13]} 10. h3 {[%clk 0:02:50]}  a6 {[%clk 0:02:08]} 11. O-O {[%clk 0:02:49]}  Na5 {[%clk 0:02:06]} 12. Qd3 {[%clk 0:02:41]}  b5 {[%clk 0:01:38]} 13. Rae1 {[%clk 0:02:36]}  Nxb3 {[%clk 0:01:36]} 14. axb3 {[%clk 0:02:35]}  Bb7 {[%clk 0:01:37]} 15. Bf2 {[%clk 0:02:23]}  e5 {[%clk 0:01:31]} 16. Nde2 {[%clk 0:02:08]}  b4 {[%clk 0:01:25]} 17. Nd5 {[%clk 0:01:52]}  Nxd5 {[%clk 0:01:16]} 18. exd5 {[%clk 0:01:52]}  e4 {[%clk 0:01:17]} 19. Qc4 {[%clk 0:01:50]}  a5 {[%clk 0:01:16]} 20. Qb5 {[%clk 0:00:34]}  Ba6 {[%clk 0:01:11]} 21. Qa4 {[%clk 0:00:34]}  Rc8 {[%clk 0:01:09]} 22. c4 {[%clk 0:00:28]}  bxc3 {[%clk 0:01:05]} 23. Nxc3 {[%clk 0:00:28]}  Bxf1 {[%clk 0:00:54]} 24. Kxf1 {[%clk 0:00:28]}  f5 {[%clk 0:00:35]} 25. Nb5 {[%clk 0:00:26]}  Rc2 {[%clk 0:00:33]} 26. Nxd6 {[%clk 0:00:23]}  Rf8 {[%clk 0:00:27]} 27. Nc4 {[%clk 0:00:13]}  Qxd5 {[%clk 0:00:26]} 28. Be3 {[%clk 0:00:13]}  Qd3+ {[%clk 0:00:19]} 29. Kg1 {[%clk 0:00:14]}  Bd4 {[%clk 0:00:20]} 30. Bxd4 {[%clk 0:00:13]}  Qxd4+ {[%clk 0:00:21]} 31. Kh1 {[%clk 0:00:14]}  e3 {[%clk 0:00:20]} 32. Rxe3 {[%clk 0:00:10]}  Rc1+ {[%clk 0:00:17]} 33. Kh2 {[%clk 0:00:10]}  Qxf4+ {[%clk 0:00:18]} 34. Rg3 {[%clk 0:00:11]}  Rh1+ {[%clk 0:00:12]} 35. Kxh1 {[%clk 0:00:10]}  Qxg3 {[%clk 0:00:13]} 36. Qxa5 {[%clk 0:00:09]}  f4 {[%clk 0:00:07]} 37. Qd5+ {[%clk 0:00:08]}  Kg7 {[%clk 0:00:06]} 38. Qe5+ {[%clk 0:00:07]}  Kh6 {[%clk 0:00:07]} 39. Qe7 {[%clk 0:00:05]}  Ra8 {[%clk 0:00:04]} 40. Na3 {[%clk 0:00:02]}  Rc8 {[%clk 0:00:03]} 0-1


[Site "https://www.chess.com"]

[Event "Titled Tuesday Blitz February 14 Late 2023"]
[White "Fajdetic, Hrvoje"]
[Black "Meunier-Pion, Jean"]
[WhiteFideId "14501945"]
[BlackFideId "20685327"]
[WhiteElo "2151"]
[BlackElo "2215"]
[Result "0-1"]
[Round "10"]
[TimeControl "180+2"]
[Date "2023.02.14"]
[WhiteClock "0:02:25"]
[BlackClock "0:02:04"]

1. f4 {[%clk 0:02:51]}  d5 {[%clk 0:02:59]} 2. Nf3 {[%clk 0:02:50]}  Nf6 {[%clk 0:03:00]} 3. e3 {[%clk 0:02:51]}  g6 {[%clk 0:02:57]} 4. Be2 {[%clk 0:02:47]}  Bg7 {[%clk 0:02:58]} 5. O-O {[%clk 0:02:48]}  O-O {[%clk 0:02:58]} 6. d3 {[%clk 0:02:48]}  c5 {[%clk 0:02:49]} 7. Qe1 {[%clk 0:02:48]}  Nc6 {[%clk 0:02:49]} 8. Qh4 {[%clk 0:02:47]}  Bg4 {[%clk 0:02:21]} 9. Nc3 {[%clk 0:02:45]}  d4 {[%clk 0:02:15]} 10. Ne4 {[%clk 0:02:42]}  Bxf3 {[%clk 0:02:11]} 11. Bxf3 {[%clk 0:02:40]}  dxe3 {[%clk 0:02:10]} 12. Bxe3 {[%clk 0:02:38]}  Nd4 {[%clk 0:02:10]} 13. Bd1 {[%clk 0:02:32]}  Nf5 {[%clk 0:02:04]} 14. Qf2 {[%clk 0:02:25]}  Nxe4 {[%clk 0:02:04]} 0-1


[Site "https://www.chess.com"]

[Event "Titled Tuesday Blitz February 14 Late 2023"]
[White "Miszler, Levente"]
[Black "Alfaro, William"]
[WhiteFideId "763276"]
[BlackFideId "6100457"]
[WhiteElo "2271"]
[BlackElo "2134"]
[Result "1-0"]
[Round "10"]
[TimeControl "180+2"]
[Date "2023.02.14"]
[WhiteClock "0:02:09"]
[BlackClock "0:02:21"]

1. Nf3 {[%clk 0:03:00]}  Nf6 {[%clk 0:02:56]} 2. c4 {[%clk 0:03:01]}  g6 {[%clk 0:02:53]} 3. g3 {[%clk 0:02:59]}  Bg7 {[%clk 0:02:54]} 4. Bg2 {[%clk 0:03:00]}  O-O {[%clk 0:02:53]} 5. O-O {[%clk 0:03:01]}  c5 {[%clk 0:02:51]} 6. Nc3 {[%clk 0:03:01]}  Nc6 {[%clk 0:02:50]} 7. d3 {[%clk 0:03:01]}  d6 {[%clk 0:02:50]} 8. a3 {[%clk 0:03:01]}  Rb8 {[%clk 0:02:49]} 9. Rb1 {[%clk 0:03:01]}  a6 {[%clk 0:02:50]} 10. b4 {[%clk 0:03:01]}  cxb4 {[%clk 0:02:49]} 11. axb4 {[%clk 0:03:02]}  b5 {[%clk 0:02:49]} 12. cxb5 {[%clk 0:03:03]}  axb5 {[%clk 0:02:49]} 13. Bd2 {[%clk 0:03:03]}  Nd7 {[%clk 0:02:45]} 14. Qc1 {[%clk 0:02:58]}  Re8 {[%clk 0:02:39]} 15. Nxb5 {[%clk 0:02:57]}  Nxb4 {[%clk 0:02:27]} 16. Rxb4 {[%clk 0:02:15]}  Ba6 {[%clk 0:02:25]} 17. Nc7 {[%clk 0:02:10]}  Rxb4 {[%clk 0:02:21]} 18. Bxb4 {[%clk 0:02:09]} 1-0


[Site "https://www.chess.com"]

[Event "Titled Tuesday Blitz February 14 Late 2023"]
[White "Vaglio Mattey, Emanuel"]
[Black "Torres Dominguez, David"]
[WhiteFideId "6504167"]
[BlackFideId "2220857"]
[WhiteElo "2155"]
[BlackElo "1994"]
[Result "1-0"]
[Round "10"]
[TimeControl "180+2"]
[Date "2023.02.14"]
[WhiteClock "0:00:13"]
[BlackClock "0:00:01"]

1. d4 {[%clk 0:02:57]}  e5 {[%clk 0:02:59]} 2. dxe5 {[%clk 0:02:57]}  d6 {[%clk 0:03:00]} 3. exd6 {[%clk 0:02:56]}  Bxd6 {[%clk 0:03:00]} 4. Nf3 {[%clk 0:02:57]}  Bg4 {[%clk 0:03:00]} 5. Nc3 {[%clk 0:02:55]}  Nc6 {[%clk 0:03:00]} 6. h3 {[%clk 0:02:48]}  Bh5 {[%clk 0:02:58]} 7. e4 {[%clk 0:02:27]}  Qe7 {[%clk 0:02:57]} 8. Bd3 {[%clk 0:02:26]}  O-O-O {[%clk 0:02:53]} 9. Nd5 {[%clk 0:02:25]}  Qe8 {[%clk 0:02:46]} 10. O-O {[%clk 0:02:24]}  Nge7 {[%clk 0:02:33]} 11. c4 {[%clk 0:02:17]}  Nd4 {[%clk 0:02:26]} 12. Be2 {[%clk 0:02:13]}  Nxe2+ {[%clk 0:01:42]} 13. Qxe2 {[%clk 0:02:12]}  Nxd5 {[%clk 0:01:27]} 14. cxd5 {[%clk 0:02:13]}  f5 {[%clk 0:01:00]} 15. Re1 {[%clk 0:01:47]}  Bb4 {[%clk 0:00:46]} 16. Bd2 {[%clk 0:01:33]}  Bxd2 {[%clk 0:00:46]} 17. Qxd2 {[%clk 0:01:32]}  Bxf3 {[%clk 0:00:43]} 18. gxf3 {[%clk 0:01:32]}  Qh5 {[%clk 0:00:40]} 19. Kg2 {[%clk 0:01:26]}  fxe4 {[%clk 0:00:35]} 20. fxe4 {[%clk 0:01:27]}  Rd6 {[%clk 0:00:34]} 21. Re3 {[%clk 0:01:08]}  Rg6+ {[%clk 0:00:27]} 22. Rg3 {[%clk 0:01:07]}  Rf8 {[%clk 0:00:25]} 23. Qe3 {[%clk 0:00:59]}  Rxg3+ {[%clk 0:00:20]} 24. fxg3 {[%clk 0:00:49]}  Qe5 {[%clk 0:00:16]} 25. Qe2 {[%clk 0:00:49]}  Re8 {[%clk 0:00:14]} 26. Re1 {[%clk 0:00:48]}  a6 {[%clk 0:00:12]} 27. b3 {[%clk 0:00:48]}  h5 {[%clk 0:00:11]} 28. Qf2 {[%clk 0:00:42]}  g6 {[%clk 0:00:08]} 29. Re2 {[%clk 0:00:38]}  Kb8 {[%clk 0:00:08]} 30. Qf4 {[%clk 0:00:35]}  Qd4 {[%clk 0:00:03]} 31. Rd2 {[%clk 0:00:30]}  Qxe4+ {[%clk 0:00:02]} 32. Qxe4 {[%clk 0:00:27]}  Rxe4 {[%clk 0:00:02]} 33. Kf3 {[%clk 0:00:28]}  Re7 {[%clk 0:00:02]} 34. Kf4 {[%clk 0:00:28]}  Kc8 {[%clk 0:00:01]} 35. Kg5 {[%clk 0:00:28]}  Re3 {[%clk 0:00:01]} 36. Rg2 {[%clk 0:00:18]}  Rd3 {[%clk 0:00:01]} 37. Kxg6 {[%clk 0:00:18]}  Rxd5 {[%clk 0:00:01]} 38. Rf2 {[%clk 0:00:13]} 1-0


[Site "https://www.chess.com"]